Cogmind - Beta 13 @@@ ROGUE MODE // 2024.06.30 @ 18:12:00 Player: buwwet Result: Destroyed by S-27 Virus with Autogun Performance ------------- Evolutions (5) 2500 Regions Visited (15) 3000 Robots Destroyed (46) 230 Value Destroyed (1467) 1467 Prototype IDs (16) 320 Alien Tech Used (2) 400 Bonus (401) 401 TOTAL SCORE: 8318 Bonus ------- Follower Combat Kills 101 Met Zhirov 300 Cogmind --------- Core Integrity 0/1000 Matter 116/300 Energy 299/300 System Corruption 9% Temperature Cool (2) Movement Flying (42) Location -4/Proximity Caves Parts ------- > --- POWER (2) -------- (None) > --- PROPULSION (5) --- Advanced Myomer Leg VTOL Module (fused) VTOL Module > --- UTILITY (8) ------ Compact Battery Improved Signal Interpreter Advanced Signal Interpreter System Shield Improved System Shield > --- WEAPON (2) ------- Lance > --- INVENTORY (5) ---- Heavy Riot Gun Molecular Deconstructor Peak State ------------ > --- POWER ------------ Light Ion Engine Micro Fission Core > --- PROPULSION ------- Improved VSS Leg VTOL Module Improved Cesium-ion Thruster Nuclear Pulse Array > --- UTILITY ---------- Machine Analyzer Enhanced Optical Array Advanced Sensor Array Improved Signal Interpreter Core Analyzer Core Shielding Hacking Suite System Shield > --- WEAPON ----------- Hypervelocity Gauss Cannon Improved Remote Datajack > --- INVENTORY -------- VTOL Module Phase Shifter System Shield System Restoration Module Hypervelocity Gauss Rifle [Rating: 71] Favorites ----------- Power Ion Engine Engine Ion Engine Power Core Light Nuclear Core Reactor Fusion Reactor Propulsion Light Treads Treads Light Treads Leg Aluminum Leg Wheel Compact Wheel Hover Unit Gravmag System Flight Unit Cesium-ion Thruster Utility Improved Signal Interpreter Device Disposable Heat Sink Storage Large Storage Unit Processor Improved Signal Interpreter Hackware System Shield Protection Weapon Shielding Weapon Battle Cannon Energy Gun Subdweller Laser Ballistic Gun Hypervelocity Gauss Rifle Ballistic Cannon Battle Cannon Launcher Heavy Missile Launcher Special Weapon Improved Remote Datajack Impact Weapon Mace Slashing Weapon Axe Piercing Weapon Lance Build | -11 -10 -10 -10 -9 -7 -7 -7 -6 -6 -6 -5 -5 -5 -5 -4 ------- Run | Yrd Mat Min Sub Rec Fac Was Fac Fac Low Low Fac Upp Upp Zhi Pro Slots Evolved 10 | . . . . . 6 . . 2 . . 2 . . . . Power 1 | . . . . . 1 . . . . . . . . . . Propulsion 3 | . . . . . 2 . . . . . 1 . . . . Utility 6 | . . . . . 3 . . 2 . . 1 . . . . Weapon . | . . . . . . . . . . . . . . . . Parts Attached 138 | 7 6 1 2 1 32 . 14 22 8 1 24 5 13 2 . Power 19 | 1 1 . . . 3 . 2 2 2 1 4 . 2 1 . Engine 4 | 1 1 . . . . . . . . . 1 . 1 . . Core 14 | . . . . . 3 . 2 2 2 1 3 . 1 . . Reactor 1 | . . . . . . . . . . . . . . 1 . Propulsion 50 | 3 2 . . 1 16 . 8 6 2 . 7 . 4 1 . Treads 12 | 2 1 . . 1 6 . . 1 . . . . 1 . . Leg 8 | 1 1 . . . 4 . . 1 . . . . . 1 . Wheel 1 | . . . . . . . . . 1 . . . . . . Hover 5 | . . . . . 2 . . . 1 . 2 . . . . Flight 24 | . . . . . 4 . 8 4 . . 5 . 3 . . Utility 47 | 1 3 . 1 . 10 . 3 12 3 . 7 2 5 . . Device 23 | . 2 . 1 . 4 . 3 6 2 . 4 1 . . . Storage 4 | 1 1 . . . 1 . . . . . . . 1 . . Processor 11 | . . . . . 3 . . 4 1 . 1 1 1 . . Hackware 7 | . . . . . 1 . . 2 . . 1 . 3 . . Protection 2 | . . . . . 1 . . . . . 1 . . . . Artifact . | . . . . . . . . . . . . . . . . Weapon 22 | 2 . 1 1 . 3 . 1 2 1 . 6 3 2 . . Energy Gun 4 | 2 . . 1 . . . . . . . . 1 . . . Energy Cannon . | . . . . . . . . . . . . . . . . Ballistic Gun 6 | . . . . . 1 . . 2 1 . 1 . 1 . . Ballistic Cannon 4 | . . 1 . . 1 . . . . . 2 . . . . Launcher 1 | . . . . . . . . . . . 1 . . . . Special Weapon 2 | . . . . . . . . . . . 1 1 . . . Impact Weapon 2 | . . . . . 1 . 1 . . . . . . . . Slashing Weapon 2 | . . . . . . . . . . . 1 1 . . . Piercing Weapon 1 | . . . . . . . . . . . . . 1 . . Special Melee Weapon . | . . . . . . . . . . . . . . . . Unidentified Prototypes 8 | . . . . . . . 1 . . . 1 2 . 4 . Parts Lost 58 | . 2 . . . 7 . 8 10 1 . 18 1 5 . 6 Power 9 | . 1 . . . . . 2 2 1 . 1 . 1 . 1 Propulsion 23 | . . . . . 5 . 2 5 . . 7 . 2 . 2 Utility 20 | . 1 . . . 2 . 4 2 . . 7 . 2 . 2 Weapon 6 | . . . . . . . . 1 . . 3 1 . . 1 Highest Loss Streak 10 | . 2 . . . 5 . 4 8 1 . 10 1 3 . 4 To Critical Strikes 1 | . . . . . . . . 1 . . . . . . . Average Slot Usage (%) 81 | . 92 100 99 100 84 84 82 83 71 74 73 39 60 85 76 Engine 4 | . 13 14 14 14 6 . . . . . . . 1 . . Core 2 | . . . . . . 7 6 5 2 . 1 . 2 5 4 Treads 8 | . 20 28 28 28 14 . . . . . . . . . . Leg 4 | . 7 . . . 12 . . . 6 6 4 . . 2 5 Hover 1 | . . . . . . . . . 1 6 3 5 5 5 . Flight 10 | . . . . . 2 30 29 22 6 6 10 5 11 17 16 Device 9 | . 7 14 13 14 15 7 7 4 10 6 5 6 . . . Storage 6 | . 14 14 14 14 7 7 7 4 . . . . 3 5 5 Processor 11 | . . . . . 2 15 15 24 25 26 20 7 16 17 16 Hackware 4 | . . . . . . 7 5 6 6 6 9 5 10 17 16 Protection 1 | . . . . . 4 . . . . . 3 . . . . Energy Gun 4 | . 28 27 14 14 2 . . . . . . . . . . Ballistic Gun 2 | . . . . . 3 . . 4 5 6 2 . 2 5 2 Ballistic Cannon 3 | . . . 14 14 6 . . . . . 1 . . . . Impact Weapon 1 | . . . . . . 7 6 5 . . . . . . . Naked Turns . | . . . . . . . . . . . . . . . . Heaviest Build 37 | 13 29 31 33 33 37 18 19 24 15 17 23 5 12 12 12 Greatest Support 66 | 40 40 40 40 40 66 20 23 24 16 16 23 5 17 12 12 Greatest Overweight (x) 6 | . 1 . . . 6 . 2 1 . 1 . . . . . Average Overweight (x) . | . . . . . . . . . . . . . . . . Largest Inventory Capacity 15 | 8 15 15 15 15 15 10 10 10 5 5 5 5 5 5 5 Average Capacity 10 | 6 11 15 15 15 14 10 10 9 5 5 5 5 5 5 5 Most Carried 15 | 4 13 15 15 15 15 9 10 9 5 5 5 5 5 4 3 Average Carried 9 | 2 7 14 14 14 14 9 9 7 3 4 4 4 2 3 3 Final Capacity 15 | 8 15 15 15 15 10 10 10 5 5 5 5 5 5 5 5 Final Carried 15 | 4 13 15 14 15 9 9 9 4 4 5 4 5 3 3 3 Class Distribution -------------------- 41% | Mutant 19% | Scout 17% | Scavenger-Mutant 6% | Sprinter 5% | Hacker-Mutant 5% | Hacker-Scout Dominant Class ---------------- Mutant | -10/Materials Mutant | -10/Mines Mutant | -10/Subcaves Mutant | -9/Recycling Scavenger-Mutant | -7/Factory Scout | -7/Waste Scout | -7/Factory Sprinter | -6/Factory Mutant | -6/Lower Caves Mutant | -6/Lower Caves Hacker-Scout | -5/Factory Mutant | -5/Upper Caves Hacker-Sprinter | -5/Upper Caves Hacker-Sprinter | -5/Zhirov Hacker-Mutant | -4/Proximity Caves Resources | -11 -10 -10 -10 -9 -7 -7 -7 -6 -6 -6 -5 -5 -5 -5 -4 ----------- Run | Yrd Mat Min Sub Rec Fac Was Fac Fac Low Low Fac Upp Upp Zhi Pro Matter Collected 1820 | 182 128 10 45 35 582 . 90 104 297 47 75 34 165 . 26 Remotely . | . . . . . . . . . . . . . . . . Salvage Created 1390 | . 312 55 63 60 662 . 83 20 50 . 56 . 29 . . Parts 68 | . 17 3 3 1 22 . 9 . 4 . 6 . 3 . . Haulers Intercepted . | . . . . . . . . . . . . . . . . Recyclers Shooed 1 | . . . . . . . 1 . . . . . . . . Parts Field Recycled . | . . . . . . . . . . . . . . . . Retrieved Matter . | . . . . . . . . . . . . . . . . Parts Self-Destructed 11 | . . . 7 . . . . . 3 . . . 1 . . Prevented . | . . . . . . . . . . . . . . . . Kills | -11 -10 -10 -10 -9 -7 -7 -7 -6 -6 -6 -5 -5 -5 -5 -4 ------- Run | Yrd Mat Min Sub Rec Fac Was Fac Fac Low Low Fac Upp Upp Zhi Pro Combat Hostiles Destroyed 28 | . 6 2 1 1 15 . . . 1 . 1 . 1 . . Guns 18 | . 5 2 1 1 6 . . . 1 . 1 . 1 . . Cannons 9 | . . . . . 9 . . . . . . . . . . AOE 1 | . 1 . . . . . . . . . . . . . . Classes Destroyed 13 | . 2 2 2 1 5 . 1 . . . . . . . . Worker 6 | . . . . . 1 . 3 . . . 2 . . . . Builder 1 | . . . . . . . 1 . . . . . . . . Tunneler 2 | . . 1 . . . . 1 . . . . . . . . Recycler 2 | . . . . . 2 . . . . . . . . . . Operator 3 | . 2 . . . . . . 1 . . . . . . . Turret 1 | . . . 1 . . . . . . . . . . . . Watcher 3 | . . . . . 3 . . . . . . . . . . Swarmer 4 | . . 2 . . . . . . . . 1 . 1 . . Grunt 17 | . 6 . . . 11 . . . . . . . . . . Brawler 2 | . . . . . 2 . . . . . . . . . . Sentry 1 | . . . . 1 . . . . . . . . . . . Programmer 3 | . . . . . 2 . . . 1 . . . . . . Subdweller 1 | . . . 1 . . . . . . . . . . . . Best Kill Streak 4 | . 3 2 1 1 4 . 3 1 1 . 1 . 1 . . Combat Bots Only 4 | . 2 2 1 1 4 . . . 1 . 1 . 1 . . Max Kills in Single Turn 1 | . 1 1 1 1 1 . 1 1 1 . 1 . 1 . . Gunslinging . | . . . . . . . . . . . . . . . . Exploded 1 | . 1 . . . . . . . . . . . . . . Melee . | . . . . . . . . . . . . . . . . Uniques/NPCs Destroyed . | . . . . . . . . . . . . . . . . Combat | -11 -10 -10 -10 -9 -7 -7 -7 -6 -6 -6 -5 -5 -5 -5 -4 -------- Run | Yrd Mat Min Sub Rec Fac Was Fac Fac Low Low Fac Upp Upp Zhi Pro Hostile Shots Fired 687 | . 26 6 33 1 71 . 92 148 11 . 166 15 52 . 66 Missed 324 | . 9 3 16 . 18 . 47 61 3 . 95 10 22 . 40 Damage Taken 6718 | . 335 27 119 18 1216 . 644 1436 153 . 1625 113 515 . 517 Core 2044 | . 28 10 17 . 176 . 271 488 65 . 440 43 291 . 215 Absorbed by Shields . | . . . . . . . . . . . . . . . . Redirected to Shielding 102 | . . . . . 52 . . . . . 50 . . . . Regen/Repaired (Parts) 21 | . . . . . . . . . . . 21 . . . . Core Remaining (%) 62 | 100 . . . 78 . . 36 . . 34 . . . . . Volleys Fired 119 | . 24 10 5 1 57 . . 3 3 . 11 . 5 . . Largest 2 | . 2 2 2 2 2 . . 1 1 . 2 . 1 . . Hottest 99 | . 80 80 99 99 99 . . 30 33 . 72 . 23 . . Shots Fired 216 | . 48 20 10 2 113 . . 3 3 . 12 . 5 . . Gun 147 | . 48 18 5 1 56 . . 3 3 . 8 . 5 . . Cannon 67 | . . 2 5 1 57 . . . . . 2 . . . . Launcher 2 | . . . . . . . . . . . 2 . . . . Special . | . . . . . . . . . . . . . . . . Kinetic 132 | . . 2 5 1 103 . . 3 3 . 10 . 5 . . Thermal 46 | . 24 8 3 1 10 . . . . . . . . . . Explosive 2 | . . . . . . . . . . . 2 . . . . Electromagnetic 36 | . 24 10 2 . . . . . . . . . . . . Robot Hit Streak 13 | . 10 6 7 8 13 . . 3 1 . 4 . 1 . . Robot Miss Streak 8 | . 2 2 1 . 8 . . . 1 . 2 . 2 . . Penetration Max 1 | . . . . . . . . . . . 1 . . . . Secondary Targets 1 | . . 1 . . . . . . . . . . . . . Max Gunslinging Chain 1 | . . 1 . . . . . . . . . . . . . Shots Hit Robots 167 | . 33 7 7 1 92 . 8 4 1 . 12 . 2 . . Core Hits 113 | . 15 3 4 1 76 . 3 2 1 . 6 . 2 . . Critical Kills 4 | . . . . . . . 1 . 1 . 2 . . . . Critical Parts Destroyed 2 | . . . . . . . . 1 . . 1 . . . . Critical Strikes 8 | . 1 . . . 1 . 1 1 1 . 3 . . . . Destroy 4 | . . . . . . . . . 1 . 3 . . . . Blast 1 | . . . . . 1 . . . . . . . . . . Corrupt 1 | . 1 . . . . . . . . . . . . . . Smash 2 | . . . . . . . 1 1 . . . . . . . Melee Attacks 119 | . . . . . 15 . 50 36 . . 6 4 4 . 4 Impact 101 | . . . . . 15 . 50 36 . . . . . . . Slashing 10 | . . . . . . . . . . . 6 4 . . . Piercing 8 | . . . . . . . . . . . . . 4 . 4 Sneak Attacks 7 | . . . . . . . 7 . . . . . . . . Combat Hostiles . | . . . . . . . . . . . . . . . . Follow-up Attacks . | . . . . . . . . . . . . . . . . Damage Inflicted 4011 | . 479 87 138 21 2258 . 498 90 7 . 401 . 32 . . Guns 1692 | . 439 87 74 21 928 . . 59 7 . 45 . 32 . . Cannons 1019 | . . . 64 . 955 . . . . . . . . . . Explosions 561 | . 40 . . . 352 . . . . . 169 . . . . Melee 729 | . . . . . 23 . 498 31 . . 177 . . . . Ramming 10 | . . . . . . . . . . . 10 . . . . Kinetic 1946 | . . . 64 . 1739 . . 59 7 . 45 . 32 . . Thermal 766 | . 199 34 64 21 448 . . . . . . . . . . Explosive 217 | . . . . . 48 . . . . . 169 . . . . Electromagnetic 343 | . 280 53 10 . . . . . . . . . . . . Impact 552 | . . . . . 23 . 498 31 . . . . . . . Slashing 177 | . . . . . . . . . . . 177 . . . . Piercing . | . . . . . . . . . . . . . . . . Highest Corruption 18 | . . . . . 6 14 18 5 5 . 13 13 9 9 9 Average Corruption 9 | . . . . . 4 11 14 3 3 . 5 11 9 9 9 Corruption Purged 18 | . . . . . . . 7 . 5 . 2 4 . . . Corruption Blocked . | . . . . . . . . . . . . . . . . Effects 95 | . . . . . 14 2 42 2 3 . 7 11 7 3 4 Message Errors 22 | . . . . . 2 . 13 . . . 2 . 2 1 2 Matter Fused 14 | . . . . . 3 . 5 . 1 . 2 2 . 1 . Heat Flow Errors 16 | . . . . . 1 1 6 . . . . 4 3 . 1 Energy Discharges 18 | . . . . . 4 1 7 1 1 . . 2 1 1 . Parts Rejected 3 | . . . . . 2 . . 1 . . . . . . . Parts Fused 3 | . . . . . . . 1 . . . . 1 . . 1 Data Loss (minor) 10 | . . . . . 1 . 4 . 1 . 2 1 1 . . Data Loss (major) 4 | . . . . . . . 3 . . . . 1 . . . Misfires 1 | . . . . . 1 . . . . . . . . . . Misdirections 4 | . . . . . . . 3 . . . 1 . . . . Overload Shots . | . . . . . . . . . . . . . . . . Overflow Damage 366 | . 39 . . . 132 . 132 31 . . 32 . . . . Projectiles 8 | . . . . . 8 . . . . . . . . . . Explosions 162 | . 39 . . . 123 . . . . . . . . . . Melee 196 | . . . . . 1 . 132 31 . . 32 . . . . Knockbacks 16 | . . . 1 . 14 . 1 . . . . . . . . Impact 1 | . . . . . . . 1 . . . . . . . . Kinetic 15 | . . . 1 . 14 . . . . . . . . . . Secondary . | . . . . . . . . . . . . . . . . Self-Inflicted Damage 445 | . 116 . . . 304 . . . . . 25 . . . . Shots 7 | . 2 . . . 4 . . . . . 1 . . . . Rammed . | . . . . . . . . . . . . . . . . Targets Rammed 2 | . . . . . . . . . . . 2 . . . . Kicked 2 | . . . . . . . . . . . 2 . . . . Crushed . | . . . . . . . . . . . . . . . . Highest Temperature 345 | . 216 36 9 39 195 157 345 2 . . 8 180 248 . 85 Average Temperature 78 | . 69 20 6 20 54 100 132 1 . . 5 80 122 . 41 Received Heat Transfer 1146 | . 126 . 78 . 360 . 93 168 57 . 108 9 54 . 93 Siege Activations . | . . . . . . . . . . . . . . . . Robots Corrupted . | . . . . . . . . . . . . . . . . Combat Hostiles . | . . . . . . . . . . . . . . . . Parts Fried 11 | . 1 1 . . 3 . 4 2 . . . . . . . Impact Corruptions 7 | . . . . . 1 . 5 1 . . . . . . . Robots Melted . | . . . . . . . . . . . . . . . . Combat Hostiles . | . . . . . . . . . . . . . . . . Parts Melted 3 | . . . 1 2 . . . . . . . . . . . Heat Transferred 950 | . 400 75 75 25 375 . . . . . . . . . . Parts Sabotaged . | . . . . . . . . . . . . . . . . Parts Stolen . | . . . . . . . . . . . . . . . . Parts Stripped . | . . . . . . . . . . . . . . . . Power Chain Reactions 1 | . 1 . . . . . . . . . . . . . . Alert | -11 -10 -10 -10 -9 -7 -7 -7 -6 -6 -6 -5 -5 -5 -5 -4 ------- Run | Yrd Mat Min Sub Rec Fac Was Fac Fac Low Low Fac Upp Upp Zhi Pro Peak Influence 310 | . 146 90 . 274 281 134 277 310 . . 189 . . . . Initial 232 | . . 11 . 232 . 74 93 115 . . 31 . . . . Average 114 | . 48 33 . 206 131 92 88 200 . . 61 . . . . Maximum Alert Level 1 | . . . . 1 1 . 1 1 . . . . . . . Low Security (%) 74 | 100 100 100 . 23 65 100 88 49 . . 100 . . . . Level 1 25 | . . . . 76 34 . 11 50 . . . . . . . Level 2 . | . . . . . . . . . . . . . . . . Level 3 . | . . . . . . . . . . . . . . . . Level 4 . | . . . . . . . . . . . . . . . . Level 5 . | . . . . . . . . . . . . . . . . High Security . | . . . . . . . . . . . . . . . . Max Security . | . . . . . . . . . . . . . . . . Squads Dispatched 17 | . 3 . . . 6 . 4 1 . . 2 . 1 . . Investigation 4 | . 1 . . . 2 . . 1 . . . . . . . Extermination 5 | . . . . . 3 . 2 . . . . . . . . Reinforcement 7 | . 2 . . . 1 . 2 . . . 2 . . . . Assault 1 | . . . . . . . . . . . . . 1 . . Garrison . | . . . . . . . . . . . . . . . . Intercept . | . . . . . . . . . . . . . . . . Searches Triggered . | . . . . . . . . . . . . . . . . Construction Impeded . | . . . . . . . . . . . . . . . . Haulers Reinforced 1 | . . . . . . . 1 . . . . . . . . Active Scanning Responses . | . . . . . . . . . . . . . . . . Cargo Convoy Interrupts 1 | . . . . . . . . . . . 1 . . . . Stealth | -11 -10 -10 -10 -9 -7 -7 -7 -6 -6 -6 -5 -5 -5 -5 -4 --------- Run | Yrd Mat Min Sub Rec Fac Was Fac Fac Low Low Fac Upp Upp Zhi Pro Distress Signals 4 | . 1 . . . . . 1 . . . 2 . . . . Communications Jammed 2 | . . . . . 2 . . . . . . . . . . Distress Signals 2 | . . . . . 2 . . . . . . . . . . Times Spotted 219 | . 12 3 26 1 28 6 20 27 5 . 37 11 25 . 18 Peak Tracking Total 17 | . 2 3 6 1 5 6 12 10 3 . 12 5 16 . 17 Tactical Retreats 39 | . 1 . 2 . 2 . 7 7 3 . 6 4 5 . 2 Traps | -11 -10 -10 -10 -9 -7 -7 -7 -6 -6 -6 -5 -5 -5 -5 -4 ------- Run | Yrd Mat Min Sub Rec Fac Was Fac Fac Low Low Fac Upp Upp Zhi Pro Traps Triggered 10 | . . . . . 4 . 3 1 . . 2 . . . . Indirectly . | . . . . . . . . . . . . . . . . Trap Hack Attempts . | . . . . . . . . . . . . . . . . Triggered . | . . . . . . . . . . . . . . . . Disarmed . | . . . . . . . . . . . . . . . . Reprogrammed . | . . . . . . . . . . . . . . . . Reused . | . . . . . . . . . . . . . . . . Traps Extracted . | . . . . . . . . . . . . . . . . Installed . | . . . . . . . . . . . . . . . . Triggered 5 | . . . . . . . . . . . 1 . 4 . . Most Traps Carried 2 | . . 2 2 2 1 . . . . . . . . . . Machines | -11 -10 -10 -10 -9 -7 -7 -7 -6 -6 -6 -5 -5 -5 -5 -4 ---------- Run | Yrd Mat Min Sub Rec Fac Was Fac Fac Low Low Fac Upp Upp Zhi Pro Machines Disabled 12 | . 2 . 2 . 7 . . . . . 1 . . . . Max in Single Turn 5 | . 2 . 1 . 5 . . . . . 1 . . . . Machines Repaired . | . . . . . . . . . . . . . . . . Machines Dismantled . | . . . . . . . . . . . . . . . . Machines Sabotaged . | . . . . . . . . . . . . . . . . Overloaded Fab Kills . | . . . . . . . . . . . . . . . . Hacking | -11 -10 -10 -10 -9 -7 -7 -7 -6 -6 -6 -5 -5 -5 -5 -4 --------- Run | Yrd Mat Min Sub Rec Fac Was Fac Fac Low Low Fac Upp Upp Zhi Pro Machines Accessed 41 | . 4 . . 3 7 . 6 8 . . 4 . . 9 . Terminals 25 | . 4 . . 3 6 . 4 5 . . 3 . . . . Fabricators 1 | . . . . . . . . 1 . . . . . . . Repair Stations 1 | . . . . . . . . . . . 1 . . . . Recycling Units 3 | . . . . . . . 2 1 . . . . . . . Scanalyzers 2 | . . . . . 1 . . 1 . . . . . . . Garrison Access . | . . . . . . . . . . . . . . . . Total Hacks 147 | . 10 . . 10 18 . 15 32 . . 14 . . 48 . Successful 86 | . 3 . . 1 2 . 4 23 . . 5 . . 48 . Failed 61 | . 7 . . 9 16 . 11 9 . . 9 . . . . Catastrophic 20 | . 3 . . 4 2 . 5 2 . . 4 . . . . Database Lockouts . | . . . . . . . . . . . . . . . . Manual 27 | . 6 . . 6 5 . . 3 . . 6 1 . . . Terminals 65 | . 10 . . 10 13 . 10 13 . . 9 . . . . Fabricators 3 | . . . . . . . . 3 . . . . . . . Repair Stations 5 | . . . . . . . . . . . 5 . . . . Recycling Units 8 | . . . . . . . 5 3 . . . . . . . Scanalyzers 18 | . . . . . 5 . . 13 . . . . . . . Garrison Access . | . . . . . . . . . . . . . . . . Terminal Hacks 63 | . 3 . . 1 2 . 1 5 . . 3 . . 48 . Record 41 | . . . . . 1 . 1 3 . . . . . 36 . Part Schematic 5 | . . . . . . . . . . . 1 . . 4 . Robot Analysis 5 | . 1 . . . . . . . . . . . . 4 . Prototype ID Bank 4 | . . . . . . . . . . . . . . 4 . Branch Access Points 1 | . . . . . . . . 1 . . . . . . . Repair Station Index 1 | . . . . . 1 . . . . . . . . . . Alert Level 1 | . . . . . . . . 1 . . . . . . . Unreport Threat 4 | . 1 . . 1 . . . . . . 2 . . . . Locate Traps 1 | . 1 . . . . . . . . . . . . . . Fabricator Hacks 2 | . . . . . . . . 2 . . . . . . . Load Schematic 1 | . . . . . . . . 1 . . . . . . . Build 1 | . . . . . . . . 1 . . . . . . . Repair Station Hacks 2 | . . . . . . . . . . . 2 . . . . Scan Component 1 | . . . . . . . . . . . 1 . . . . Repair 1 | . . . . . . . . . . . 1 . . . . Recycling Unit Hacks 6 | . . . . . . . 3 3 . . . . . . . Process 2 | . . . . . . . 1 1 . . . . . . . Report Inventory 2 | . . . . . . . 1 1 . . . . . . . Retrieve Matter 2 | . . . . . . . 1 1 . . . . . . . Scanalyzer 13 | . . . . . . . . 13 . . . . . . . Insert Component 6 | . . . . . . . . 6 . . . . . . . Analyze 7 | . . . . . . . . 7 . . . . . . . Garrison Access Hacks . | . . . . . . . . . . . . . . . . Unauthorized Hacks . | . . . . . . . . . . . . . . . . Terminals . | . . . . . . . . . . . . . . . . Fabricators . | . . . . . . . . . . . . . . . . Repair Stations . | . . . . . . . . . . . . . . . . Recycling Units . | . . . . . . . . . . . . . . . . Scanalyzers . | . . . . . . . . . . . . . . . . Garrison Access . | . . . . . . . . . . . . . . . . Data Cores Recovered 1 | . . . . . . . . 1 . . . . . . . Used 1 | . . . . . . . . 1 . . . . . . . Hacking Detections 30 | . 4 . . 3 7 . 6 7 . . 3 . . . . Full Trace Events 3 | . 1 . . . 1 . . 1 . . . . . . . Feedback Events . | . . . . . . . . . . . . . . . . Feedback Blocked . | . . . . . . . . . . . . . . . . Robot Schematics Acquired . | . . . . . . . . . . . . . . . . Robots Built . | . . . . . . . . . . . . . . . . Authchips . | . . . . . . . . . . . . . . . . Time . | . . . . . . . . . . . . . . . . Total Robot Build Rating . | . . . . . . . . . . . . . . . . Part Schematics Acquired 11 | . . . . . . . . 6 . . 1 . . 4 . Parts Built 1 | . . . . . . . . 1 . . . . . . . Authchips . | . . . . . . . . . . . . . . . . Time 36 | . . . . . . . . 36 . . . . . . . Total Part Build Rating 3 | . . . . . . . . 3 . . . . . . . Parts Repaired 1 | . . . . . . . . . . . 1 . . . . Time 50 | . . . . . . . . . . . 50 . . . . Parts Recycled . | . . . . . . . . . . . . . . . . Recycled Matter 82 | . . . . . . . 75 7 . . . . . . . Retrieved Matter 82 | . . . . . . . 75 7 . . . . . . . Retrieved Components . | . . . . . . . . . . . . . . . . Parts Scanalyzed 6 | . . . . . . . . 6 . . . . . . . Part Schematics Acquired 6 | . . . . . . . . 6 . . . . . . . Parts Damaged . | . . . . . . . . . . . . . . . . Bothacking | -11 -10 -10 -10 -9 -7 -7 -7 -6 -6 -6 -5 -5 -5 -5 -4 ------------ Run | Yrd Mat Min Sub Rec Fac Was Fac Fac Low Low Fac Upp Upp Zhi Pro Used RIF Installer . | . . . . . . . . . . . . . . . . Robots Hacked . | . . . . . . . . . . . . . . . . Non-combat . | . . . . . . . . . . . . . . . . Combat . | . . . . . . . . . . . . . . . . Robot Hacks Applied . | . . . . . . . . . . . . . . . . Relay Couplers Released . | . . . . . . . . . . . . . . . . Fabnet Peak Effective % . | . . . . . . . . . . . . . . . . Robots Rewired . | . . . . . . . . . . . . . . . . Allies Hacked . | . . . . . . . . . . . . . . . . Hacks Repelled . | . . . . . . . . . . . . . . . . Allies | -11 -10 -10 -10 -9 -7 -7 -7 -6 -6 -6 -5 -5 -5 -5 -4 -------- Run | Yrd Mat Min Sub Rec Fac Was Fac Fac Low Low Fac Upp Upp Zhi Pro Total Allies 2 | . . 2 . . . . . . . . . . . . . Largest Group 2 | . . 2 1 1 . . . . . . . . . . . Highest-Rated Group 46 | . . 46 31 31 . . . . . . . . . . . Highest-Rated Ally 31 | . . 31 31 31 . . . . . . . . . . . Total Orders . | . . . . . . . . . . . . . . . . Ally Attacks 20 | . . 2 12 6 . . . . . . . . . . . Total Damage 357 | . . 21 208 128 . . . . . . . . . . . Kills 8 | . . 1 5 2 . . . . . . . . . . . Allies Corrupted . | . . . . . . . . . . . . . . . . Allies Melted . | . . . . . . . . . . . . . . . . Intel | -11 -10 -10 -10 -9 -7 -7 -7 -6 -6 -6 -5 -5 -5 -5 -4 ------- Run | Yrd Mat Min Sub Rec Fac Was Fac Fac Low Low Fac Upp Upp Zhi Pro Robot Analysis Total 5 | . 1 . . . . . . . . . . . . 4 . Derelict Logs Recovered 5 | . . . . . . . . . 2 1 . 1 1 . . Drone Launches . | . . . . . . . . . . . . . . . . Drone Recoveries . | . . . . . . . . . . . . . . . . Exploration | -11 -10 -10 -10 -9 -7 -7 -7 -6 -6 -6 -5 -5 -5 -5 -4 ------------- Run | Yrd Mat Min Sub Rec Fac Was Fac Fac Low Low Fac Upp Upp Zhi Pro Turns Passed 7298 | 76 513 226 198 524 1755 57 1138 642 700 78 756 269 191 84 91 Spaces Moved 8266 | 42 217 119 108 317 1038 107 1567 1351 677 73 1036 702 476 232 204 Core 63 | 5 . . . . . . . . 58 . . . . . . Treads 1524 | 37 143 119 108 317 800 . . . . . . . . . . Legs 360 | . 74 . . . . . . . 279 . 7 . . . . Wheels 475 | . . . . . . . . . 340 73 62 . . . . Hover 75 | . . . . . 47 . . . . . 28 . . . . Flight 5769 | . . . . . 191 107 1567 1351 . . 939 702 476 232 204 Fastest Speed 26 | 50 160 160 160 160 26 26 26 27 50 100 35 35 26 29 39 Average Speed 63 | 146 170 160 160 160 133 26 26 30 91 100 46 35 31 33 39 Slowest Speed 545 | 160 190 160 160 160 545 26 165 107 100 115 100 35 55 39 42 Overloaded Moves . | . . . . . . . . . . . . . . . . Propulsion Burnouts . | . . . . . . . . . . . . . . . . Robots Hopped 9 | . . . . . . . . 4 . . 3 . . 2 . Cave-ins Triggered . | . . . . . . . . . . . . . . . . Teleports 1 | . . . . . . . . . . . . . . 1 . Exploration Rate (%) 43 | 4 40 36 12 66 30 86 44 45 72 10 26 73 68 62 23 Regions Visited 15 Branch Regions 9 Pre-discovered Areas 4 | . . . . . . . . . 1 . . . . 3 . Known Exits Taken 8 | . . . . . . . 1 1 1 1 1 1 1 1 . Unknown Exits Taken 5 | 1 1 1 1 1 . . . . . . . . . . . Scrap Searched 19 | . . 1 . . . . . . 9 2 . 3 3 . 1 Spaces Dug 96 | . . . . . 11 . 32 28 . . 13 4 4 . 4 Terrain Destroyed 218 | . 21 . 1 . 104 . 32 28 . . 20 4 4 . 4 Melee 84 | . . . . . 11 . 32 28 . . 1 4 4 . 4 Projectile 4 | . . . 1 . 3 . . . . . . . . . . AOE 130 | . 21 . . . 90 . . . . . 19 . . . . Terrain Rammed . | . . . . . . . . . . . . . . . . Walls Destroyed . | . . . . . . . . . . . . . . . . Machines Disabled . | . . . . . . . . . . . . . . . . Actions | -11 -10 -10 -10 -9 -7 -7 -7 -6 -6 -6 -5 -5 -5 -5 -4 --------- Run | Yrd Mat Min Sub Rec Fac Was Fac Fac Low Low Fac Upp Upp Zhi Pro Total 9862 | 53 311 135 125 337 1276 135 2206 1515 752 77 1280 718 499 235 208 Wait 1061 | . 53 2 6 5 91 29 532 90 60 . 191 2 . . . Move 8234 | 41 216 118 107 316 1038 106 1566 1342 676 72 1029 701 475 227 204 Hop 9 | . . . . . . . . 4 . . 3 . . 2 . Pick Up 74 | 5 10 3 1 7 16 . 14 6 2 2 4 1 2 1 . Fast Attach 78 | 5 2 . 1 . 17 . 7 7 6 1 16 4 9 3 . Attach 48 | 1 1 . 1 . 11 . 5 14 2 . 7 1 4 1 . Detach 14 | . . . 1 . 3 . . 5 1 . 2 2 . . . Swap 14 | 1 3 1 . 1 4 . 2 1 . . 1 . . . . Drop 72 | . 2 1 3 7 24 . 12 7 2 2 8 3 . 1 . Fire 119 | . 24 10 5 1 57 . . 3 3 . 11 . 5 . . Melee 119 | . . . . . 15 . 50 36 . . 6 4 4 . 4 Ram . | . . . . . . . . . . . . . . . . Kick 2 | . . . . . . . . . . . 2 . . . . Crush . | . . . . . . . . . . . . . . . . Escape Stasis 18 | . . . . . . . 18 . . . . . . . . Rewire . | . . . . . . . . . . . . . . . . Trap . | . . . . . . . . . . . . . . . . Miscellaneous . | . . . . . . . . . . . . . . . . Route ------- -11/Scrapyard -10/Materials (discovered 2 exits: [*Mat] / [*Min]) -10/Mines (discovered 3 exits: [*Mat x2] / [*Sub]) -10/Subcaves -9/Recycling -7/Factory (discovered 2 exits: *Fac x2) -7/Waste -7/Factory -6/Factory (discovered 2 exits: *Low x2) -6/Lower Caves -6/Lower Caves -5/Factory -5/Upper Caves -5/Upper Caves -5/Zhirov -4/Proximity Caves History --------- Turn | Location | Event 10 | -11/Scrapyard | Discovered new exit (range 13) 77 | -11/Scrapyard | Entered Materials 281 | -10/Materials | Discovered new exit (range 16) 318 | -10/Materials | Build established: Mutant 546 | -10/Materials | Discovered new exit (range 13) 590 | -10/Materials | Entered Mines 590 | -10/Mines | Discovered new exit (range 11) 591 | -10/Mines | Met a Derelict bent on vengeance 683 | -10/Mines | Found a hidden stash of uninstalled traps 714 | -10/Mines | A weapon hastily lodged in a ceiling crevice suddenly fell to the ground 744 | -10/Mines | Discovered new exit (range 12) 775 | -10/Mines | Discovered new exit (range 10) 816 | -10/Mines | Entered Subcaves 816 | -10/Subcaves | Accompanied by 1 ally 821 | -10/Subcaves | Led the pair of lost Derelicts to an unsafe place 957 | -10/Subcaves | Shifting Twisted Machinery released Flamer 976 | -10/Subcaves | Discovered new exit (range 13) 1014 | -10/Subcaves | Entered Recycling 1014 | -9/Recycling | Accompanied by 1 ally 1514 | -9/Recycling | Discovered new exit (range 16) 1538 | -9/Recycling | Entered Factory 1538 | -7/Factory | Evolved 6 slots: Power x1, Propulsion x2, Utility x3 1706 | -7/Factory | Discovered new exit (range 16) 1844 | -7/Factory | Build established: Scavenger-Mutant 2084 | -7/Factory | Discovered new exit (range 15) 2828 | -7/Factory | Lost 5 parts (3n2u) 3091 | -7/Factory | Build established: Mutant 3293 | -7/Factory | Sucked down chute 3293 | -7/Factory | Entered Waste 3296 | -7/Waste | Spotted C-40 Crusher 3297 | -7/Waste | Spotted C-40 Crusher 3308 | -7/Waste | EMP discharged 3308 | -7/Waste | System corruption reached 10% 3309 | -7/Waste | Spotted C-40 Crusher 3333 | -7/Waste | Spotted C-40 Crusher 3333 | -7/Waste | Spotted C-40 Crusher 3336 | -7/Waste | Spotted C-40 Crusher 3340 | -7/Waste | Discovered new exit (range 14) 3350 | -7/Waste | Identified exit to Factory 3350 | -7/Waste | Entered Factory 3468 | -7/Factory | Build established: Scout 4398 | -7/Factory | Core integrity fell below 50% 4468 | -7/Factory | Discovered new exit (range 17) 4475 | -7/Factory | Identified exit to Factory 4488 | -7/Factory | Entered another Factory area 4488 | -6/Factory | Evolved 2 slots: Utility x2 4518 | -6/Factory | Lost 4 parts (1p1n2u) 4783 | -6/Factory | Build established: Sprinter 4978 | -6/Factory | Identified exit to Lower Caves 5001 | -6/Factory | Fabricated System Shield (x1) 5092 | -6/Factory | Core integrity fell below 50% 5113 | -6/Factory | Lost 8 parts (1p5n1u1w) 5130 | -6/Factory | Entered Lower Caves 5229 | -6/Lower Caves | Spotted B-75 Beast 5362 | -6/Lower Caves | Learned location of Zion (-6) 5559 | -6/Lower Caves | Learned Factory garrison access intel 5578 | -6/Lower Caves | Build established: Mutant 5816 | -6/Lower Caves | Discovered new exit (range 13) 5827 | -6/Lower Caves | Identified exit to Lower Caves 5830 | -6/Lower Caves | Entered another Lower Caves area 5872 | -6/Lower Caves | Learned Factory emergency access door positions 5873 | -6/Lower Caves | Discovered new exit (range 10) 5882 | -6/Lower Caves | Identified exit to Factory 5908 | -6/Lower Caves | Entered Factory 5908 | -5/Factory | Evolved 2 slots: Propulsion x1, Utility x1 5910 | -5/Factory | Loaded intel: 4 garrison access locations 6088 | -5/Factory | Repaired Adv. Sensor Array 6345 | -5/Factory | Discovered new exit (range 21) 6376 | -5/Factory | Build established: Hacker-Scout 6476 | -5/Factory | Spotted B-75 Beast 6530 | -5/Factory | Lost 4 parts (2n1u1w) 6562 | -5/Factory | Identified exit to Upper Caves 6596 | -5/Factory | Lost 10 parts (1p3n4u2w) 6600 | -5/Factory | System corruption reached 10% 6663 | -5/Factory | Lost 3 parts (1n2u) 6664 | -5/Factory | Cargo convoy interrupted 6664 | -5/Factory | Entered Upper Caves 6668 | -5/Upper Caves | Acquired the password to a Derelict Tinkerer's latest research 6699 | -5/Upper Caves | Found Prototype Special Weapon 6699 | -5/Upper Caves | Identified Molecular Deconstructor 6754 | -5/Upper Caves | Caught by Unaware searching for contraband prototypes 6754 | -5/Upper Caves | Caught by Unaware searching for contraband prototypes 6828 | -5/Upper Caves | Spotted B-75 Beast 6875 | -5/Upper Caves | Learned Factory trap positions 6927 | -5/Upper Caves | Attracted the attention of an 0b10 outpost 6928 | -5/Upper Caves | Build established: Mutant 6930 | -5/Upper Caves | Discovered new exit (range 12) 6933 | -5/Upper Caves | Identified exit to Upper Caves 6933 | -5/Upper Caves | Entered another Upper Caves area 6945 | -5/Upper Caves | Core integrity fell below 50% 6951 | -5/Upper Caves | Attracted the attention of an 0b10 outpost 6984 | -5/Upper Caves | Attracted the attention of an 0b10 checkpoint 6993 | -5/Upper Caves | Learned Factory terminal intel 7026 | -5/Upper Caves | Lost 3 parts (1p1n1u) 7123 | -5/Upper Caves | Discovered new exit (range 5) 7124 | -5/Upper Caves | Identified exit to Zhirov 7124 | -5/Upper Caves | Entered Zhirov 7124 | -5/Zhirov | Discovered new exit (range 3) 7125 | -5/Zhirov | Identified exit to Proximity Caves 7130 | -5/Zhirov | Met Zhirov 7139 | -5/Zhirov | Learned location of Quarantine (-2) 7139 | -5/Zhirov | Learned location of Testing (-3) 7139 | -5/Zhirov | Learned location of Command (-1) 7147 | -5/Zhirov | Zhirov requested help retrieving the SGEMP Prototype 7175 | -5/Zhirov | Found Alien Artifact 7176 | -5/Zhirov | Identified Transdimensional Reconstructor 7176 | -5/Zhirov | Warped through subspace 7191 | -5/Zhirov | Found Alien Artifact 7191 | -5/Zhirov | Identified Integrated Reactor 7191 | -5/Zhirov | Installed Integrated Reactor, increased core energy generation (+10) 7208 | -5/Zhirov | Entered Proximity Caves 7218 | -4/Proximity Caves | Core integrity fell below 20% 7219 | -4/Proximity Caves | Attracted the attention of an 0b10 checkpoint 7268 | -4/Proximity Caves | Attracted the attention of an 0b10 base 7299 | -4/Proximity Caves | Destroyed by S-27 Virus with Autogun Last Messages --------------- 07228_ Penetrated by Slug. 07243_ System corrupted: Heat flow error (+113). 07244_ Penetrated by Slug. 07244_ Autogun destroyed. 07263_ Q&EPQ2K F0T6WEOALHQTCRTHN6OXRJK0=2BQ 07264_ S-27 Virus springs to life. 07264_ G-67 Veteran springs to life. 07276_ Searching scrap... 07276_ Found Unknown Device. 07276_ Found Humpback. 07276_ Found 26 Matter. 07277_ Acquired 26 matter. 07282_ Lgt. Nuclear Core destroyed. 07282_ Penetrated by Slug. 07284_ Slug penetrates Wall. 07285_ VTOL Module destroyed. 07288_ J,MOS|XKA GFTQ0GEZ# LFYL8=DX%58CD8E9Q2I 07289_ 0b10 Decoder Chip [Generic] destroyed. 07289_ System Shield destroyed. [Achievement: This Is Interesting...] Map ----- +----------------------------------------------------+ | ?????????????????????????????????????????????????? | | ?????????????????????????????????????????????????? | | ?????????????????????????????????????????????????? | | ?????????????????????????????????????????????????? | | ?????????????????????????????????????????????????? | | ?????????????????????????????????????????????????? | | ?????????????????????????????????????????????????? | | ?????????????????????????????????????????????????? | | ?????????????????????????????????????????????????? | | ?????????????????????????????????????????????????? | | ?????????????????????????????????????????????????? | | ?????????????????????????????????????????????????? | | ?????????#######?????????????????????????????????? | | ?????????# """"#?????????????????????????????????? | | ?????????#" ""#?????????????????????????????????? | | ?????????#"" "#?????????????????????????????????? | | ??????????# "#??????????????????????????????????? | | ????????### "##????####?????????????????????????? | | ????????# "" "##???# #?????????????????????????? | | ????????# ##?## #?????????????????????????? | | ???????## ### #?????????????????????????? | | ???????# ## #?????????????????????????? | | ??????## ## ##????????????????????????? | | ####### ## #????????????????????????? | | ###### #?????????????????? | | s @ #?????????????????? | | ###### ss s ###########?????????????????? | | # #### #???????????????????????????? | | # #??# #???????????????????????????? | | # #### ### #? ##???????????????????????????? | | # ##?## #?## ##????????????????????????????? | | # ##?# #???# ###?????????????????????????????? | | #?# #???####???????????????????????????????? | | ## #??????????????????????????????????????? | | ## #??????????????????????????????????????? | | ?# #####??????????????????????????????????? | | ## ## ##?????????????????????????????????? | | ##### ##????????????????????????????????? | | #??# #####????????????????????????????? | | ##?## #????????????????????????????? | | ##?### # ## #????????????????????????????? | | ### # ## ###### ############?????????????????? | | # ## ### #????# ! #?????????????????? | | " ## #?# #????# ##########!####??????????????? | | #### ### #????# #??????????????? | | ##?## ## ###??# #??????????????? | | ##### #### ########### #??????????????? | | ## #"""" """# #??????????????? | | ## #### #""T" + #??????????????? | | # ## #?# # # #??????????????? | +----------------------------------------------------+ Best States ------------- Heat Dissipation 40 Coolant Potential 50 Energy Generation 24 Energy Capacity 360 Matter Stores 300 Matter Capacity 300 Sight Range 22 Robot Scan Range 16 Terrain Scan Density 10 Jamming Range 12 Core Shielding 20 Weapon Shielding 33 Evasion (%) 72 Core Analysis 6 Recoil Reduction 7 Salvage Targeting 3 Offensive Hacking 10 Defensive Hacking 32 Authchip Count 2 Item Schematics ----------------- Hacking Suite | -6/Factory | Scanalyzed Mic. Nuclear Core | -6/Factory | Scanalyzed System Shield | -6/Factory | Scanalyzed Imp. Cesium-ion Thruster | -6/Factory | Scanalyzed Seismic Detector | -6/Factory | Scanalyzed System Restoration Module | -6/Factory | Scanalyzed Maul | -5/Factory | Hacked Assault Drone Bay | -5/Zhirov | Free Exp. Heat Sink | -5/Zhirov | Free Exp. Optical Array | -5/Zhirov | Free Imp. Arc Thrower | -5/Zhirov | Free Robot Schematics ------------------ None Fabricated ------------ System Shield | x1 | -6/Factory Alien Tech Used ----------------- Transdimensional Reconstructor Integrated Reactor Achievements -------------- Alien Tech Armchair Analyst I Spy Subspace Traveler The Science Guy This Is Interesting... Challenges ------------ None Game ------ Seed TargetingCryofiberStripper Manual? 0 Play Time 02:21:24 Cumulative 24.2 hours Start 2024.06.30 @ 08:47:50 End 2024.06.30 @ 18:12:00 Sessions 7 Manual Loads 0 Difficulty Rogue Special Mode None Game No. 23 Rogue 23 Adventurer 0 Explorer 0 Win Type - Total 0 Types 0/0/0/0/0/0/0/0/0 Lore% 27 Gallery% 27 Achievement% 23 Wizard Run 0 Options --------- Layout 1 ASCII 0 Keyboard 0 Movement Arrows Keybinds 0 Fullscreen 2 Font 24/Terminus Map View 50x35 Zoom Use 0% Tactical HUD 1 Map Filters NONE Filters NONE Steam 1 RUN: 7a8cf1be-98dc-440c-a4e4-72c35886e16d